fUST/lending_fUST_20251011
["ID","MTS","AMOUNT","RATE_DAILY","PERIOD"]
[390823963,1760173057731,-0.01,0.00026351,2]
[390823964,1760173057915,-1067.0,0.00025723,2]
[390823965,1760173057944,-1066.99,0.00026351,2]
[390823966,1760173058209,500.0,0.000267,5]
[390823967,1760173065152,1067.0,0.00025949,2]
[390823968,1760173068350,1067.0,0.00025937,2]
[390823969,1760173071566,1067.0,0.00026107,2]
[390823970,1760173072582,2031.03,0.0002687,2]
[390823971,1760173072604,2968.97,0.0002687,2]
[390823972,1760173074649,1067.0,0.00026378,2]
[390823973,1760173080460,5000.0,0.0002687,2]
[390823974,1760173082132,964.04,0.00025665,7]
[390823975,1760173082156,102.96,0.00025665,7]
[390823976,1760173082278,300.0,0.00026869,2]
[390823977,1760173085246,1067.0,0.00026699,7]
[390823978,1760173088368,1067.0,0.0002569,7]
[390823979,1760173088703,5000.0,0.0002687,2]
[390823980,1760173091559,1067.0,0.00026614,7]
[390823981,1760173097022,4999.65628755,0.0002687,2]
[390823982,1760173105237,5000.0,0.0002687,2]
[390823983,1760173105329,0.35371245,0.00025205,2]
[390823984,1760173105353,149.64628755,0.00025205,2]
[390823985,1760173105702,172.5,0.00025805,2]
[390823986,1760173106099,195.0,0.00026405,2]
[390823987,1760173113744,5000.0,0.0002687,2]
[390823988,1760173122151,1429.58060124,0.0002687,2]
[390823989,1760173129788,7376.93,0.0002687,2]
[390823990,1760173129902,1193.49939876,0.0002687,2]
[390823991,1760173129925,3806.50060124,0.0002687,2]
[390823992,1760173138680,5000.0,0.0002687,2]
[390823993,1760173142412,300.0,0.00026869,2]
[390823994,1760173154349,5000.0,0.0002687,2]
[390823995,1760173162468,5000.0,0.0002687,2]
[390823996,1760173177821,0.01,0.0002687,2]
[390823997,1760173177851,4999.99,0.0002687,2]
[390823998,1760173179301,-500.0,0.0002687,5]
[390823999,1760173180747,179.89206476,0.00023727,2]
[390824000,1760173185787,4820.12793524,0.0002687,2]
[390824001,1760173185811,179.87206476,0.0002687,2]
[390824002,1760173191375,-9876.02939876,0.0002687,2]
[390824003,1760173191529,-10000.01,0.0002687,2]
[390824004,1760173192727,205.10522659,0.0002677,2]
[390824005,1760173193369,-9794.90477341,0.0002687,2]
[390824006,1760173193469,-10000.01,0.0002687,2]
[390824007,1760173201234,5000.0,0.0002687,2]
[390824008,1760173201331,300.0,0.00026869,2]
[390824009,1760173202060,300.0,0.00026869,2]
[390824010,1760173202194,300.0,0.00026869,2]
[390824011,1760173203780,300.0,0.00026869,2]
[390824012,1760173204304,200.0,0.0002687,2]
[390824013,1760173209130,1200.0,0.00026869,2]
[390824014,1760173209709,2015.03270865,0.0002687,2]
[390824015,1760173209730,2984.96729135,0.0002687,2]
[390824016,1760173212758,151.51440632,0.0002687,2]
[390824017,1760173216459,250.0,0.0002687,2]
[390824018,1760173217131,250.0,0.0002687,2]
[390824019,1760173217731,-6748.50559368,0.0002687,2]
[390824020,1760173217773,250.0,0.0002687,2]
[390824021,1760173217889,-9750.01,0.0002687,2]
[390824022,1760173217989,-10000.01,0.0002687,2]
[390824023,1760173218162,-10000.01,0.0002687,2]
[390824024,1760173218362,-10000.01,0.0002687,2]
[390824025,1760173218390,250.0,0.0002687,2]
[390824026,1760173218508,-9750.01,0.0002687,2]
[390824027,1760173218617,-10000.01,0.0002687,2]
[390824028,1760173218727,-10000.01,0.0002687,2]
[390824029,1760173218872,-10000.01,0.0002687,2]
[390824030,1760173218991,-10000.01,0.0002687,2]
[390824031,1760173219106,-10000.01,0.0002687,2]
[390824032,1760173219226,-10000.01,0.0002687,2]
[390824033,1760173219335,-10000.01,0.0002687,2]
[390824034,1760173219442,-10000.01,0.0002687,2]
[390824035,1760173221541,-10000.01,0.0002687,2]
[390824036,1760173221670,-10000.01,0.0002687,2]
[390824037,1760173221771,-10000.01,0.0002687,2]
[390824038,1760173221907,-10000.01,0.0002687,2]
[390824039,1760173222055,-10000.01,0.0002687,2]
[390824040,1760173222160,-10000.01,0.0002687,2]
[390824041,1760173222264,-10000.01,0.0002687,2]
[390824042,1760173222430,-10000.01,0.0002687,2]
[390824043,1760173222560,-10000.01,0.0002687,2]
[390824044,1760173222685,-10000.01,0.0002687,2]
[390824045,1760173222788,-10000.01,0.0002687,2]
[390824046,1760173222901,-10000.01,0.0002687,2]
[390824047,1760173223035,-10000.01,0.0002687,2]
[390824048,1760173223147,-703.00152185,0.0002687,2]
[390824049,1760173223169,-8594.0069563,0.0002687,2]
[390824050,1760173223265,-2609.37557469,0.0002687,2]
[390824051,1760173223293,-500.0,0.00026873,2]
[390824052,1760173223320,-500.0,0.00026873,2]
[390824053,1760173223348,-500.0,0.00026873,2]
[390824054,1760173223375,-500.0,0.00026873,2]
[390824055,1760173223403,-343.86255741,0.00026873,2]
[390824056,1760173223504,-93.5337358,0.00026873,2]
[390824057,1760173227667,-5000.0,0.00024953,10]
[390824058,1760173227705,-0.01,0.00026873,2]
[390824059,1760173227784,-499.99,0.00026873,2]
[390824060,1760173227812,-500.0,0.00026873,2]
[390824061,1760173227840,-500.0,0.00026873,2]
[390824062,1760173227868,-500.0,0.00026873,2]
[390824063,1760173227894,-500.0,0.00026873,2]
[390824064,1760173232920,5000.0,0.0002688,2]
[390824065,1760173235013,200.0,0.00027,120]
[390824066,1760173248232,0.03,0.00026817,2]
[390824067,1760173248255,174.64994455,0.00026817,2]
[390824068,1760173248282,5000.0,0.0002688,2]
[390824069,1760173249885,-9825.34005545,0.0002688,2]
[390824070,1760173250019,-10000.01,0.0002688,2]
[390824071,1760173256117,4825.36005545,0.0002688,2]
[390824072,1760173256138,174.63994455,0.0002688,2]
[390824073,1760173256666,-5000.01,0.0002688,2]
[390824074,1760173256923,-10000.01,0.0002688,2]
[390824075,1760173257052,-10000.01,0.0002688,2]
[390824076,1760173257200,-10000.01,0.0002688,2]
[390824077,1760173257336,-10000.01,0.0002688,2]
[390824078,1760173257464,-10000.01,0.0002688,2]
[390824079,1760173257572,-10000.01,0.0002688,2]
[390824080,1760173257840,-10000.01,0.0002688,2]
[390824081,1760173257853,-10000.01,0.0002688,2]
[390824082,1760173257894,-10000.01,0.0002688,2]
[390824083,1760173258011,-10000.01,0.0002688,2]
[390824084,1760173258128,-10000.01,0.0002688,2]
[390824085,1760173262316,300.0,0.00026879,2]
[390824086,1760173263360,500.0,0.00026873,2]
[390824087,1760173264087,500.0,0.00026873,2]
[390824089,1760173270604,500.0,0.00026873,2]
[390824091,1760173271031,500.0,0.00026873,2]
[390824092,1760173271222,500.0,0.00026873,2]
[390824093,1760173271290,500.0,0.00026873,2]
[390824094,1760173271476,5000.0,0.0002688,2]
[390824098,1760173279829,1700.01,0.0002688,2]
[390824099,1760173279853,3299.99,0.0002688,2]
[390824100,1760173295360,5000.0,0.0002688,2]
[390824101,1760173303247,1700.02,0.0002688,2]
[390824102,1760173303268,3299.98,0.0002688,2]
[390824103,1760173311469,1165.11725189,0.0002688,2]
[390824104,1760173320056,5000.0,0.0002688,2]
[390824105,1760173322648,300.0,0.00026879,2]
[390824106,1760173329318,234.91274811,0.0002688,2]
[390824107,1760173329344,4765.08725189,0.0002688,2]
[390824108,1760173333609,500.0,0.00026873,2]
[390824109,1760173337158,4734.92274811,0.0002688,2]
[390824110,1760173337179,265.07725189,0.0002688,2]
[390824111,1760173345338,5000.0,0.0002688,2]
[390824112,1760173345577,1200.0,0.00026879,2]
[390824113,1760173351716,3534.93274811,0.00026872,2]
[390824114,1760173351738,3645.16725189,0.00026872,2]
[390824116,1760173353604,5000.0,0.0002688,2]
[390824117,1760173361621,1354.84274811,0.0002688,2]
[390824118,1760173361641,114.93274811,0.0002688,2]
[390824119,1760173363892,205.10522659,0.0002677,2]
[390824120,1760173365419,-9679.9720253,0.0002688,2]
[390824121,1760173365599,-10000.01,0.0002688,2]
[390824122,1760173365767,-10000.01,0.0002688,2]
[390824123,1760173365919,-10000.01,0.0002688,2]
[390824124,1760173366154,-10000.01,0.0002688,2]
[390824125,1760173366257,-10000.01,0.0002688,2]
[390824126,1760173366501,-10000.01,0.0002688,2]
[390824127,1760173366518,-10000.01,0.0002688,2]
[390824128,1760173366599,-10000.01,0.0002688,2]
[390824129,1760173370551,-5000.0,0.00024953,10]
[390824130,1760173370591,-0.01,0.00026849,14]
[390824131,1760173370659,-166.592,0.00026849,14]
[390824132,1760173370693,-9666.826,0.0002688,2]
[390824133,1760173370776,-10000.01,0.0002688,2]
[390824134,1760173370924,-10000.01,0.0002688,2]
[390824135,1760173371037,-10000.01,0.0002688,2]
[390824136,1760173371160,-10000.01,0.0002688,2]
[390824137,1760173371274,-10000.01,0.0002688,2]
[390824138,1760173371410,-10000.01,0.0002688,2]
[390824139,1760173371523,-10000.01,0.0002688,2]
[390824140,1760173371639,-10000.01,0.0002688,2]
[390824141,1760173371760,-10000.01,0.0002688,2]
[390824142,1760173371873,-10000.01,0.0002688,2]
[390824143,1760173371998,-10000.01,0.0002688,2]
[390824144,1760173372111,-10000.01,0.0002688,2]
[390824145,1760173372240,-10000.01,0.0002688,2]
[390824146,1760173376586,-4172.48808075,0.0002688,2]
[390824147,1760173376612,-1655.0338385,0.0002688,2]
[390824148,1760173376711,-2609.37557469,0.0002688,2]
[390824149,1760173376745,-391.0,0.00026884,7]
[390824150,1760173376779,-391.0,0.00026903,7]
[390824151,1760173376814,-380.0,0.00026917,7]
[390824152,1760173376847,-380.0,0.00026964,2]
[390824153,1760173376878,-697.25885062,0.00026989,2]
[390824154,1760173376977,-302.74114938,0.00026989,2]
[390824155,1760173377009,-300.0,0.00027,2]
[390824156,1760173377041,-217.5,0.00027005,2]
[390824157,1760173377075,-1067.0,0.00027007,2]
[390824158,1760173377113,-391.0,0.00027084,2]
[390824159,1760173377513,-302.74114938,0.0002709,3]
[390824160,1760173377531,-5443.52770124,0.0002709,3]
[390824161,1760173377553,-10000.01,0.0002709,3]
[390824162,1760173377628,-10000.01,0.0002709,3]
[390824163,1760173377660,-2903.8077282,0.0002709,3]
[390824164,1760173377687,-160.0,0.000271,2]
[390824165,1760173377716,-154.7,0.0002711,7]
[390824166,1760173377746,-1000.0,0.00027123,10]
[390824167,1760173377774,-562.9945436,0.00027123,10]
[390824168,1760173377831,-437.0054564,0.00027123,10]
[390824169,1760173377840,-1000.0,0.00027123,10]
[390824170,1760173377849,-1000.0,0.00027123,10]
[390824171,1760173377857,-893.0,0.00027123,10]
[390824172,1760173377867,-155.77,0.00027127,7]
[390824173,1760173377876,-500.0,0.00027144,5]
[390824174,1760173378190,5000.0,0.00024953,10]
[390824175,1760173380474,1476.80004612,0.00025205,2]
[390824176,1760173385797,3523.20995388,0.0002715,2]
[390824177,1760173385822,1476.79004612,0.0002715,2]
[390824178,1760173394158,5000.0,0.00025205,2]
[390824179,1760173402140,5000.0,0.00025205,2]
[390824180,1760173410849,0.01,0.00025205,2]
[390824181,1760173410872,4999.99,0.00025205,2]
[390824188,1760173418840,5000.0,0.00025205,2]
[390824189,1760173428084,5000.0,0.00025205,2]
[390824190,1760173436569,5000.0,0.00025205,2]
[390824191,1760173442846,300.0,0.00026779,2]
[390824192,1760173443683,226.6405275,0.00026062,2]
[390824193,1760173444918,4473.3694725,0.0002678,2]
[390824194,1760173444940,526.6305275,0.0002678,2]
[390824195,1760173450574,500.0,0.00026773,2]
[390824196,1760173453008,5000.0,0.0002678,2]
[390824197,1760173461213,1577.04880757,0.0002678,2]
[390824198,1760173469685,2922.96119243,0.0002678,2]
[390824199,1760173469708,2077.03880757,0.0002678,2]
[390824200,1760173470328,500.0,0.00022711,2]
[390824201,1760173472927,500.0,0.00023846,2]
[390824202,1760173477883,5000.0,0.0002678,2]
[390824203,1760173478341,583.64,0.0002677,3]
[390824204,1760173493198,1339.33119243,0.0002678,2]
[390824205,1760173493222,3660.66880757,0.0002678,2]
[390824206,1760173499943,-9335.95061881,0.0002678,2]
[390824207,1760173500087,-10000.01,0.0002678,2]
[390824208,1760173500198,-10000.01,0.0002678,2]
[390824209,1760173500654,-10000.01,0.0002678,2]
[390824210,1760173500769,-10000.01,0.0002678,2]
[390824211,1760173500884,-10000.01,0.0002678,2]
[390824212,1760173501003,-10000.01,0.0002678,2]
[390824213,1760173501092,5000.0,0.0002678,2]
[390824214,1760173501130,-5000.01,0.0002678,2]
[390824215,1760173501274,300.0,0.00026779,2]
[390824216,1760173501967,300.0,0.00026779,2]
[390824217,1760173502156,300.0,0.00026779,2]
[390824218,1760173502417,300.0,0.00026779,2]
[390824219,1760173503453,139.34119243,0.00026773,2]
[390824220,1760173503475,429.33134671,0.00026773,2]
[390824221,1760173503500,500.0,0.00026773,2]
[390824222,1760173503526,500.0,0.00026773,2]
[390824223,1760173503551,500.0,0.00026773,2]
[390824224,1760173503593,500.0,0.00026773,2]
[390824225,1760173503800,300.0,0.00026779,2]
[390824226,1760173507421,2518.94402267,0.00029939,120]
[390824227,1760173509540,1200.0,0.00026779,2]
[390824228,1760173516549,-5000.0,0.0002678,2]
[390824229,1760173524468,0.01,0.0002678,2]
[390824230,1760173524490,4999.99,0.0002678,2]
[390824231,1760173530594,5000.02,0.0002668,2]
[390824232,1760173530616,5334.86703125,0.0002668,2]
[390824233,1760173532345,4665.14296875,0.0002678,2]
[390824234,1760173532367,334.85703125,0.0002678,2]
[390824235,1760173533182,-4396.47042961,0.0002678,2]
[390824236,1760173533275,-2609.37557469,0.0002678,2]
[390824237,1760173533308,-4781.25885062,0.0002678,2]
[390824238,1760173533384,-10000.01,0.0002678,2]
[390824239,1760173533511,-10000.01,0.0002678,2]
[390824240,1760173533618,-10000.01,0.0002678,2]
[390824241,1760173533732,-10000.01,0.0002678,2]
[390824242,1760173534088,-10000.01,0.0002678,2]
[390824243,1760173534245,-10000.01,0.0002678,2]
[390824244,1760173534425,-10000.01,0.0002678,2]
[390824245,1760173534551,-10000.01,0.0002678,2]
[390824246,1760173534673,-10000.01,0.0002678,2]
[390824247,1760173534785,-10000.01,0.0002678,2]
[390824248,1760173534920,-10000.01,0.0002678,2]
[390824249,1760173538655,-10000.01,0.0002678,2]
[390824250,1760173538770,-10000.01,0.0002678,2]
[390824251,1760173538898,-10000.01,0.0002678,2]
[390824252,1760173539011,-10000.01,0.0002678,2]
[390824253,1760173539116,-10000.01,0.0002678,2]
[390824254,1760173539233,-10000.01,0.0002678,2]
[390824255,1760173548809,-5000.0,0.00024953,10]
[390824256,1760173548842,-0.01,0.00025486,9]
[390824257,1760173549043,-499.99,0.00025486,9]
[390824258,1760173549071,-505.05,0.00025486,9]
[390824259,1760173549098,-500.0,0.00025486,9]
[390824260,1760173549126,-1788.96,0.00026247,9]
[390824261,1760173549161,-1623.05,0.00026779,9]
[390824262,1760173549268,-5000.0,0.00024703,10]
[390824263,1760173549351,-165.91,0.00026779,9]
[390824264,1760173555060,500.0,0.00025486,9]
[390824265,1760173556027,500.0,0.0002678,9]
[390824266,1760173556304,500.0,0.0002678,9]
[390824267,1760173556470,500.0,0.00026247,9]
[390824268,1760173556594,500.0,0.0002678,9]
[390824269,1760173556845,500.0,0.0002678,9]
[390824270,1760173557063,5000.0,0.0002678,2]
[390824271,1760173557439,500.0,0.0002678,9]
[390824272,1760173557688,500.0,0.0002678,9]
[390824273,1760173558109,500.0,0.0002678,9]
[390824274,1760173558164,500.0,0.0002678,9]
[390824275,1760173558421,500.0,0.0002678,9]
[390824276,1760173559684,500.0,0.00025486,9]
[390824277,1760173562879,300.0,0.00026779,2]
[390824278,1760173564059,500.0,0.00025486,9]
[390824279,1760173564962,500.0,0.00026247,9]
[390824280,1760173565243,500.0,0.00026779,9]
[390824281,1760173565669,5000.0,0.0002678,2]
[390824282,1760173568386,500.0,0.0002678,9]
[390824283,1760173568599,500.0,0.0002678,9]
[390824284,1760173568841,500.0,0.0002678,9]
[390824285,1760173569139,-700.02,0.0002678,2]
[390824286,1760173569181,500.0,0.0002678,9]
[390824287,1760173569227,-9500.01,0.0002678,2]
[390824288,1760173569307,-10000.01,0.0002678,2]
[390824289,1760173569332,500.0,0.0002678,9]
[390824290,1760173569422,-9500.01,0.0002678,2]
[390824291,1760173569516,-10000.01,0.0002678,2]
[390824292,1760173569554,200.01,0.0002678,9]
[390824293,1760173569576,299.99,0.0002678,9]
[390824294,1760173569651,-9500.01,0.0002678,2]
[390824295,1760173569752,-10000.01,0.0002678,2]
[390824296,1760173569788,500.0,0.0002678,9]
[390824297,1760173569854,-9500.01,0.0002678,2]
[390824298,1760173569976,-10000.01,0.0002678,2]
[390824299,1760173570024,500.0,0.0002678,9]
[390824300,1760173571808,500.0,0.00025486,9]
[390824301,1760173572631,979.9,0.00026247,9]
[390824302,1760173572870,979.9,0.00026779,9]
[390824303,1760173573382,500.0,0.0002678,9]
[390824304,1760173573586,5000.0,0.0002678,2]
[390824305,1760173575073,500.0,0.0002678,9]
[390824306,1760173575278,530.92144843,0.0002678,9]
[390824307,1760173577195,500.0,0.0002678,9]
[390824308,1760173577418,500.0,0.0002678,9]
[390824310,1760173579994,9.28855157,0.00025486,9]
[390824311,1760173581029,-490.71144843,0.00025486,9]
[390824312,1760173582941,-5000.0,0.00024953,10]
[390824313,1760173583056,-500.0,0.00025486,9]
[390824314,1760173583129,-7518.59710314,0.0002678,2]
[390824315,1760173583177,-10000.01,0.0002678,2]
[390824316,1760173583331,-10000.01,0.0002678,2]
[390824317,1760173583450,-10000.01,0.0002678,2]
[390824318,1760173583599,-267.35299782,0.0002678,2]
[390824319,1760173583627,-205.10522659,0.0002678,2]
[390824320,1760173583654,-500.0,0.00026795,9]
[390824321,1760173583682,-508.17,0.00026795,9]
[390824322,1760173583710,-500.0,0.00026795,9]
[390824323,1760173583739,-376.3784313,0.00026795,9]
[390824324,1760173583768,-500.0,0.0002687,9]
[390824325,1760173583797,-722.32,0.0002687,9]
[390824326,1760173583826,-500.0,0.0002687,9]
[390824327,1760173583855,-722.32,0.0002687,9]
[390824328,1760173583969,-500.0,0.0002687,9]
[390824329,1760173583999,-722.32,0.0002687,9]
[390824330,1760173584029,-500.0,0.0002687,9]
[390824331,1760173584058,-722.32,0.0002687,9]
[390824332,1760173584086,-722.32,0.0002687,9]
[390824333,1760173584114,-722.32,0.0002687,9]
[390824334,1760173584141,-722.32,0.0002687,9]
[390824335,1760173584172,-54.49,0.0002687,9]
[390824336,1760173584289,-667.83,0.0002687,9]
[390824337,1760173584318,-722.32,0.0002687,9]
[390824338,1760173584346,-500.0,0.0002687,9]
[390824339,1760173584376,-722.32,0.0002687,9]
[390824340,1760173584404,-500.0,0.0002687,9]
[390824341,1760173584432,-722.32,0.0002687,9]
[390824342,1760173584616,-500.0,0.0002687,9]
[390824343,1760173584645,-608.11,0.0002687,9]
[390824344,1760173584738,-114.21,0.0002687,9]
[390824345,1760173584766,-500.0,0.0002687,9]
[390824346,1760173584793,-722.32,0.0002687,9]
[390824347,1760173584820,-722.32,0.0002687,9]
[390824348,1760173584848,-722.32,0.0002687,9]
[390824349,1760173584876,-722.32,0.0002687,9]
[390824350,1760173584904,-722.32,0.0002687,9]
[390824351,1760173584932,-722.32,0.0002687,9]
[390824352,1760173585530,-722.32,0.0002687,9]
[390824353,1760173585557,-500.0,0.0002687,9]
[390824354,1760173585584,-500.0,0.0002687,9]
[390824355,1760173585611,-500.0,0.0002687,9]
[390824356,1760173585639,-500.0,0.0002687,9]
[390824357,1760173585666,-205.08126895,0.0002687,9]
[390824358,1760173585693,-500.0,0.0002687,9]
[390824359,1760173585720,-500.0,0.0002687,9]
[390824360,1760173585751,-500.0,0.0002687,9]
[390824361,1760173585779,-545.02,0.0002687,9]
[390824362,1760173585889,-545.02,0.0002687,9]
[390824363,1760173585918,-500.0,0.0002687,9]
[390824364,1760173585947,-545.02,0.0002687,9]
[390824365,1760173585975,-545.02,0.0002687,9]
[390824366,1760173586003,-500.0,0.0002687,9]
[390824367,1760173586032,-545.02,0.0002687,9]
[390824368,1760173586060,-500.0,0.0002687,9]
[390824369,1760173586088,-500.0,0.0002687,9]
[390824370,1760173586115,-545.02,0.0002687,9]
[390824371,1760173586142,-4.79,0.0002687,9]
[390824372,1760173586181,-540.23,0.0002687,9]
[390824373,1760173586210,-500.0,0.0002687,9]
[390824374,1760173586240,-500.0,0.0002687,9]
[390824375,1760173586268,-500.0,0.0002687,9]
[390824376,1760173586296,-500.0,0.0002687,9]
[390824377,1760173586323,-500.0,0.0002687,9]
[390824378,1760173586350,-500.0,0.0002687,9]
[390824379,1760173586377,-500.0,0.0002687,9]
[390824380,1760173586404,-500.0,0.0002687,9]
[390824381,1760173586435,-267.48,0.0002687,9]
[390824382,1760173586481,-500.0,0.0002687,9]
[390824383,1760173586508,-665.0,0.0002687,9]
[390824384,1760173586534,-501.99287637,0.0002687,9]
[390824385,1760173586563,-665.0,0.0002687,9]
[390824386,1760173586593,-665.0,0.0002687,9]
[390824387,1760173586622,-665.0,0.0002687,9]
[390824388,1760173586651,-500.0,0.0002687,9]
[390824389,1760173586678,-666.74,0.0002687,9]
[390824390,1760173587839,-611.37033847,0.0002687,9]
[390824391,1760173587853,-55.36966153,0.0002687,9]
[390824392,1760173587863,-609.63033847,0.0002687,9]
[390824393,1760173587881,-57.10966153,0.0002687,9]
[390824394,1760173587890,-442.89033847,0.0002687,9]
[390824395,1760173587908,-223.84966153,0.0002687,9]
[390824396,1760173587917,-442.89033847,0.0002687,9]
[390824397,1760173587931,-57.10966153,0.0002687,9]
[390824398,1760173587940,-285.43458573,0.0002687,9]
[390824399,1760173590947,-5000.0,0.00024953,10]
[390824400,1760173590986,-0.01,0.00025486,9]
[390824401,1760173591070,-499.99,0.00025486,9]
[390824402,1760173591097,-280.84,0.0002678,9]
[390824403,1760173591125,-862.29,0.0002686,3]
[390824404,1760173591155,-214.56541427,0.0002687,9]
[390824405,1760173591189,-415.65672935,0.0002687,9]
[390824406,1760173591220,-500.0,0.0002687,9]
[390824407,1760173591250,-500.0,0.0002687,9]
[390824408,1760173591277,-500.0,0.0002687,9]
[390824409,1760173591303,-500.0,0.0002687,9]
[390824410,1760173591330,-670.86,0.0002687,9]
[390824411,1760173591420,-670.86,0.0002687,9]
[390824412,1760173591448,-670.86,0.0002687,9]
[390824413,1760173591474,-500.0,0.0002687,9]
[390824414,1760173591505,-670.86,0.0002687,9]
[390824415,1760173591532,-500.0,0.0002687,9]
[390824416,1760173591558,-670.86,0.0002687,9]
[390824417,1760173591586,-500.0,0.0002687,9]
[390824418,1760173591612,-670.86,0.0002687,9]
[390824419,1760173591808,-500.0,0.0002687,9]
[390824420,1760173591836,-670.86,0.0002687,9]
[390824421,1760173591864,-670.86,0.0002687,9]
[390824422,1760173591890,-670.86,0.0002687,9]
[390824423,1760173591916,-670.86,0.0002687,9]
[390824424,1760173591943,-670.86,0.0002687,9]
[390824425,1760173591970,-670.86,0.0002687,9]
[390824426,1760173592056,-1559.45,0.0002687,9]
[390824427,1760173592085,-670.86,0.0002687,9]
[390824428,1760173592111,-1559.45,0.0002687,9]
[390824429,1760173592138,-670.86,0.0002687,9]
[390824430,1760173592268,-1559.45,0.0002687,9]
[390824431,1760173592428,-670.86,0.0002687,9]
[390824432,1760173592457,-1559.45,0.0002687,9]
[390824433,1760173592486,-670.86,0.0002687,9]
[390824434,1760173592514,-407.91,0.0002687,9]
[390824435,1760173592612,-262.95,0.0002687,9]
[390824436,1760173592642,-670.86,0.0002687,9]
[390824437,1760173592670,-670.86,0.0002687,9]
[390824438,1760173592698,-684.39,0.0002687,9]
[390824439,1760173592726,-684.39,0.0002687,9]
[390824440,1760173592756,-745.96,0.0002687,9]
[390824441,1760173592784,-684.39,0.0002687,9]
[390824442,1760173592813,-446.45,0.0002687,9]
[390824443,1760173593896,-133.23571276,0.0002668,2]
[390824444,1760173593915,-684.39,0.0002668,2]
[390824445,1760173593934,-745.96,0.0002668,2]
[390824446,1760173593952,-684.39,0.0002668,2]
[390824447,1760173593969,-745.96,0.0002668,2]
[390824448,1760173634863,151.0,8.2e-07,2]
[390824449,1760173635929,151.0,8.2e-07,2]
[390824450,1760173636961,151.0,8.2e-07,2]
[390824451,1760173638102,151.0,8.2e-07,2]
[390824452,1760173639180,151.0,8.2e-07,2]
[390824453,1760173640238,151.0,8.2e-07,2]
[390824462,1760173680010,182.58,0.00015205,2]
[390824464,1760173680605,182.57,0.00015205,2]
[390824470,1760173681467,167.574736,0.00011769,2]
[390824471,1760173705031,-150.0,0.00018896,2]
[390824472,1760173705056,-16.22522328,0.00020614,2]
[390824473,1760173719909,-168.0,0.00018796,2]
[390824474,1760173721848,-198.07679597,0.00018796,2]
[390824475,1760173726027,-220.52147883,0.00018796,2]
[390824476,1760173746242,-1860.15831071,0.00018796,2]
[390824477,1760173746263,-150.0,0.00018796,2]
[390824478,1760173746286,-172.5,0.00019396,2]
[390824479,1760173746307,-195.0,0.00019996,2]
[390824480,1760173746327,-217.5,0.00020596,2]
[390824481,1760173746347,-133.77477672,0.00020614,2]
[390824482,1760173746366,-166.84448562,0.00020724,2]
[390824483,1760173746388,-240.0,0.00021196,2]
[390824484,1760173746407,-262.5,0.00021796,2]
[390824485,1760173746427,-150.0,0.00022332,2]
[390824486,1760173746446,-285.0,0.00022396,2]
[390824487,1760173746465,-166.84448562,0.00022532,2]
[390824488,1760173746485,-93.07393717,0.00022996,2]
[390824493,1760173832023,-5000.0,0.00018317,10]